bitfinex/quotes_ETHUSD_20230105
["timestamp","ask_amount","ask_price","bid_price","bid_amount"]
[1672911583622,1.78734079,1248.2,1248.1,34.18605148]
[1672911584096,0.066,1248.3,1248.1,34.18605148]
[1672911584415,22.67449571,1248.4,1248.2,3.98914951]
[1672911584583,22.67449571,1248.4,1248.3,3.98914951]
[1672911584936,3.04869571,1248.4,1248.3,3.98914951]
[1672911585150,2.98269571,1248.4,1248.3,3.98914951]
[1672911586103,1.19535492,1248.4,1248.3,3.98914951]
[1672911587882,23.64683529,1248.5,1248.3,3.98914951]
[1672911588038,1.19535492,1248.4,1248.3,3.98914951]
[1672911589936,2.98269571,1248.4,1248.3,3.98914951]
[1672911591393,2.98269571,1248.4,1248.3,12.00003951]
[1672911591603,2.98269571,1248.4,1248.3,12.06603951]
[1672911591815,3.57360674,1248.4,1248.3,12.06603951]
[1672911593011,24.23774632,1248.5,1248.3,12.06603951]
[1672911593223,3.57360674,1248.4,1248.3,12.06603951]
[1672911593596,20.66413958,1248.5,1248.3,12.06603951]
[1672911593597,24.23774632,1248.5,1248.3,12.06603951]
[1672911595494,24.23774632,1248.5,1248.3,20.07692951]
[1672911595948,24.23774632,1248.5,1248.3,12.06603951]
[1672911596163,23.63664632,1248.5,1248.4,3.98914951]
[1672911596384,23.63664632,1248.5,1248.4,11.99939951]
[1672911596547,23.63664632,1248.5,1248.4,12.06539951]
[1672911596958,3.63960674,1248.5,1248.4,12.06539951]
[1672911597208,3.57360674,1248.5,1248.4,4.05514951]
[1672911597425,3.57360674,1248.5,1248.4,3.98914951]
[1672911599114,3.57360674,1248.5,1248.4,52.8264135]
[1672911599463,5.38351313,1248.5,1248.4,53.37097275]
[1672911599594,4.253307,1248.5,1248.4,56.37097275]
[1672911599808,4.187307,1248.5,1248.4,56.37097275]
[1672911600288,5.38377322,1248.5,1248.4,56.37097275]
[1672911600601,3.05707402,1248.5,1248.4,58.35920263]
[1672911600817,1.7946078,1248.5,1248.4,56.37097275]
[1672911601173,4.18733352,1248.5,1248.4,56.37097275]
[1672911601880,4.18733352,1248.5,1248.4,58.35922157]
[1672911602041,1.79463432,1248.5,1248.4,56.37097275]
[1672911602502,4.18733352,1248.5,1248.4,56.37097275]
[1672911605843,4.18738169,1248.5,1248.4,56.37097275]
[1672911606922,1.79468249,1248.5,1248.4,56.37097275]
[1672911607077,4.18738169,1248.5,1248.4,56.37097275]
[1672911607284,2.99124101,1248.5,1248.4,61.89406771]
[1672911607585,1.19663879,1248.5,1248.4,66.07299837]
[1672911607720,2.99133521,1248.6,1248.4,66.07299837]
[1672911607925,2.99133521,1248.6,1248.5,36.5062348]
[1672911608138,2.99133521,1248.6,1248.5,47.31444549]
[1672911608499,2.99133521,1248.6,1248.5,44.810925]
[1672911609055,2.99133521,1248.6,1248.5,48.34372432]
[1672911609360,4.24811895,1248.7,1248.6,6.81315658]
[1672911609676,2.9853485,1248.7,1248.6,72.46428467]
[1672911609890,5.3780477,1248.7,1248.6,67.97269374]
[1672911610101,4.24811514,1248.7,1248.6,69.96058635]
[1672911610421,2.9853485,1248.7,1248.6,69.96058635]
[1672911610743,2.9873485,1248.7,1248.6,68.00200374]
[1672911610876,2.9853485,1248.7,1248.6,64.50400374]
[1672911611251,6.57417914,1248.7,1248.6,47.06382459]
[1672911611445,6.64017914,1248.7,1248.6,63.08176459]
[1672911611662,6.64081776,1248.7,1248.6,63.08176459]
[1672911611825,6.64081776,1248.7,1248.6,71.09073459]
[1672911612928,4.24747994,1248.7,1248.6,71.09073459]
[1672911613098,4.18147994,1248.7,1248.6,71.09073459]
[1672911613311,1.19066601,1248.7,1248.6,28.46490619]
[1672911613507,4.76427275,1248.7,1248.6,29.36830609]
[1672911614512,4.76627275,1248.7,1248.6,29.36630609]
[1672911614660,5.36422764,1248.7,1248.6,29.36830609]
[1672911614876,3.64155837,1248.7,1248.6,29.36830609]
[1672911615084,5.36421451,1248.7,1248.6,45.38624609]
[1672911615320,5.43021451,1248.7,1248.6,37.37727609]
[1672911616193,3.04532215,1248.7,1248.6,37.37727609]
[1672911616443,2.97932215,1248.7,1248.6,37.37727609]
[1672911618200,5.36421451,1248.7,1248.6,37.37727609]
[1672911618509,3.04532215,1248.7,1248.6,37.37727609]
[1672911618825,2.97932215,1248.7,1248.6,37.37727609]
[1672911619398,2.97932215,1248.7,1248.6,45.38624609]
[1672911619772,2.97932215,1248.7,1248.6,46.23606857]
[1672911619924,4.17122574,1248.7,1248.6,46.23606857]
[1672911620298,4.17122574,1248.7,1248.6,38.22709857]
[1672911620514,4.17122574,1248.7,1248.6,30.21812857]
[1672911622338,5.36421451,1248.7,1248.6,30.21812857]
[1672911622622,5.43021451,1248.7,1248.6,46.23606857]
[1672911622798,5.43021451,1248.7,1248.6,38.22709857]
[1672911622968,5.43021451,1248.7,1248.6,37.37727609]
[1672911624244,3.04532215,1248.7,1248.6,45.38624609]
[1672911624572,5.36421451,1248.7,1248.6,45.38624609]
[1672911624786,5.43021451,1248.7,1248.6,45.38624609]
[1672911625344,5.43021451,1248.7,1248.6,29.36830609]
[1672911626133,5.43175787,1248.7,1248.6,47.4335976]
[1672911626444,3.64155837,1248.7,1248.6,47.4335976]
[1672911626709,3.57555837,1248.7,1248.6,47.4335976]
[1672911627396,5.36611831,1248.7,1248.6,47.4335976]
[1672911627603,5.43211831,1248.7,1248.6,47.4335976]
[1672911628187,1.25666601,1248.7,1248.6,55.4425676]
[1672911628403,4.182398,1248.7,1248.6,55.4425676]
[1672911629068,4.182398,1248.7,1248.6,47.4335976]
[1672911630221,4.17848442,1248.7,1248.6,47.4335976]
[1672911630697,4.17848442,1248.7,1248.6,55.4425676]
[1672911630914,4.17848442,1248.7,1248.6,47.4335976]
[1672911633331,4.56071749,1248.7,1248.6,47.4335976]
[1672911634000,6.95374251,1248.7,1248.6,47.4335976]
[1672911634160,4.02801052,1248.7,1248.6,58.4425676]
[1672911634367,3.96201052,1248.7,1248.6,58.4425676]
[1672911634612,5.75622739,1248.7,1248.6,58.4425676]
[1672911634833,5.82222739,1248.7,1248.6,58.4425676]
[1672911636082,5.82222739,1248.7,1248.6,58.92112685]
[1672911636297,4.02801052,1248.7,1248.6,58.92112685]
[1672911636510,5.75631417,1248.7,1248.6,58.92112685]
[1672911636822,1.797777,1248.8,1248.7,3.5]
[1672911637033,1.797777,1248.8,1248.7,41.72062702]
[1672911637201,1.797777,1248.8,1248.7,42.26518627]
[1672911638463,0.00330919,1248.8,1248.7,42.26518627]
[1672911638878,0.00330919,1248.8,1248.7,49.33047637]
[1672911640406,0.00330919,1248.8,1248.7,45.83047637]
[1672911640737,1.797777,1248.8,1248.7,45.83047637]
[1672911643353,0.00330919,1248.8,1248.7,45.83047637]
[1672911643690,1.797777,1248.8,1248.7,45.83047637]
[1672911644118,0.00330919,1248.8,1248.7,45.83047637]
[1672911646899,1.19785462,1248.8,1248.7,45.83047637]
[1672911647111,1.19785462,1248.8,1248.7,80.83047637]
[1672911648468,0.00330919,1248.8,1248.7,80.83047637]
[1672911649164,0.00330919,1248.8,1248.7,84.32504837]
[1672911649475,0.00330919,1248.8,1248.7,81.06047637]
[1672911652479,0.00330919,1248.8,1248.7,84.55434991]
[1672911652688,0.00330919,1248.8,1248.7,81.06047637]
[1672911653308,0.65147519,1248.8,1248.7,81.06047637]
[1672911655446,0.65147519,1248.8,1248.7,89.47447637]
[1672911655789,1.22086217,1248.9,1248.8,3.5]
[1672911655952,2.42120789,1249.1,1248.9,3.5]
[1672911656164,4.212721,1249.1,1249.0,53.00834951]
[1672911656516,1.81969598,1249.1,1249.0,61.31114951]
[1672911656727,4.212721,1249.1,1249.0,61.31114951]
[1672911656918,1.82169598,1249.1,1249.0,68.28877639]
[1672911657136,1.81969598,1249.1,1249.0,68.29077639]
[1672911659165,1.81969598,1249.1,1249.0,68.76933564]
[1672911659351,1.81969598,1249.1,1249.0,68.53893564]
[1672911659858,0.02818287,1249.1,1249.0,68.53893564]
[1672911660246,1.81969598,1249.1,1249.0,68.53893564]
[1672911666343,3.01335277,1249.1,1249.0,68.53893564]
[1672911666547,3.0135594,1249.1,1249.0,68.53893564]
[1672911667813,1.81969598,1249.1,1249.0,68.53893564]
[1672911668227,3.01349397,1249.1,1249.0,68.53893564]
[1672911668439,1.81969598,1249.1,1249.0,68.53893564]
[1672911670070,3.01363715,1249.1,1249.0,72.02224902]
[1672911670225,1.22212404,1249.1,1249.0,72.25224902]
[1672911670435,0.02818287,1249.1,1249.0,72.25224902]
[1672911670645,1.22212404,1249.1,1249.0,72.25224902]
[1672911671508,0.02818287,1249.1,1249.0,72.25224902]
[1672911671914,1.22212404,1249.1,1249.0,72.25224902]
[1672911672240,0.02818287,1249.1,1249.0,72.25224902]
[1672911672454,0.02818287,1249.1,1249.0,79.31753912]
[1672911674696,0.02818287,1249.1,1249.0,79.31619817]
[1672911674904,0.02818287,1249.1,1249.0,79.31619312]
[1672911676537,1.22212404,1249.1,1249.0,75.83422574]
[1672911677045,3.01363715,1249.1,1249.0,75.60422574]
[1672911677511,1.22212404,1249.1,1249.0,75.60422574]
[1672911678195,3.01363715,1249.1,1249.0,75.60422574]
[1672911678572,3.01363715,1249.1,1249.0,67.60422574]
[1672911679112,1.22212404,1249.1,1249.0,67.60422574]
[1672911679472,3.01363715,1249.1,1249.0,67.60422574]
[1672911680478,3.01363715,1249.1,1249.0,75.60422574]
[1672911681100,1.22212404,1249.1,1249.0,75.60422574]
[1672911682452,3.01363715,1249.1,1249.0,75.60422574]
[1672911687313,4.48791132,1249.1,1249.0,75.60422574]
[1672911689223,4.48791132,1249.1,1249.0,110.60422574]
[1672911689470,3.29397015,1249.1,1249.0,110.60422574]
[1672911689591,4.48937382,1249.1,1249.0,110.60422574]
[1672911690176,4.33937382,1249.1,1249.0,110.60422574]
[1672911690555,3.14397015,1249.1,1249.0,110.60422574]
[1672911690863,5.53699517,1249.1,1249.0,110.60422574]
[1672911691072,5.60299517,1249.1,1249.0,110.60422574]
[1672911691287,3.20997015,1249.1,1249.0,110.60422574]
[1672911691519,3.14397015,1249.1,1249.0,110.60422574]
[1672911691729,5.53699517,1249.1,1249.0,110.60422574]
[1672911691976,5.60299517,1249.1,1249.0,110.60422574]
[1672911692377,3.93329919,1249.1,1249.0,110.60422574]
[1672911692593,6.85903118,1249.1,1249.0,110.60422574]
[1672911692745,6.92503118,1249.1,1249.0,110.60422574]
[1672911692955,6.92503118,1249.1,1249.0,96.60422574]
[1672911693326,6.92503118,1249.1,1249.0,88.59782574]
[1672911694555,6.92503118,1249.1,1249.0,88.11926649]
[1672911695008,5.11388091,1249.1,1249.0,88.11926649]
[1672911695181,3.93288256,1249.1,1249.0,88.11926649]
[1672911695393,6.85764305,1249.1,1249.0,88.11926649]
[1672911695786,6.92364305,1249.1,1249.0,88.11926649]
[1672911696178,3.93288256,1249.1,1249.0,88.11926649]
[1672911696320,3.86688256,1249.1,1249.0,88.11926649]
[1672911696950,6.85764305,1249.1,1249.0,88.11926649]
[1672911697163,6.92364305,1249.1,1249.0,88.11926649]
[1672911699211,6.92364305,1249.1,1249.0,53.11926649]
[1672911699639,3.93288256,1249.1,1249.0,53.11926649]
[1672911699870,3.86688256,1249.1,1249.0,53.11926649]
[1672911703534,5.66170082,1249.1,1249.0,53.11926649]
[1672911703691,5.72770082,1249.1,1249.0,53.11926649]
[1672911704378,6.92364305,1249.1,1249.0,53.11926649]
[1672911705849,6.9241566,1249.1,1249.0,38.13323961]
[1672911707081,4.53103466,1249.1,1249.0,38.13323961]
[1672911707301,4.46503466,1249.1,1249.0,38.13323961]
[1672911709193,4.46503466,1249.1,1249.0,46.13963961]
[1672911709735,4.46503466,1249.1,1249.0,38.13323961]
[1672911711995,6.85856648,1249.1,1249.0,46.13963961]
[1672911712198,6.92456648,1249.1,1249.0,54.11380332]
[1672911713318,6.92456648,1249.1,1249.0,46.13963961]
[1672911717466,6.92456648,1249.1,1249.0,46.13661657]
[1672911717782,4.53103466,1249.1,1249.0,30.12381657]
[1672911717994,4.46503466,1249.1,1249.0,46.13661657]
[1672911718665,6.85944042,1249.1,1249.0,46.13661657]
[1672911718887,6.92544042,1249.1,1249.0,46.13661657]
[1672911719036,4.53103466,1249.1,1249.0,46.13661657]
[1672911719408,4.46503466,1249.1,1249.0,38.13021657]
[1672911719563,4.46503466,1249.1,1249.0,46.13661657]
[1672911720242,4.46503466,1249.1,1249.0,38.13021657]
[1672911720450,4.46703466,1249.1,1249.0,38.12821657]
[1672911720665,1.47427417,1249.1,1249.0,22.11741657]
[1672911721089,4.46691778,1249.1,1249.0,30.12381657]
[1672911721301,4.46691778,1249.1,1249.0,46.13661657]
[1672911721668,4.46691778,1249.1,1249.0,39.07132647]
[1672911723885,6.8610377,1249.1,1249.0,39.07132647]
[1672911724149,6.9270377,1249.1,1249.0,39.07132647]
[1672911724576,4.53291778,1249.1,1249.0,39.07132647]
[1672911724733,4.46691778,1249.1,1249.0,39.07132647]
[1672911737480,4.46691778,1249.1,1249.0,39.06862029]
[1672911737894,4.46691778,1249.1,1249.0,53.06862029]
[1672911740752,6.86146768,1249.1,1249.0,53.06862029]
[1672911740947,6.92746768,1249.1,1249.0,53.06862029]
[1672911742417,4.53291778,1249.1,1249.0,53.06862029]
[1672911742629,4.46691778,1249.1,1249.0,53.06862029]
[1672911743489,6.86156753,1249.1,1249.0,53.06862029]
[1672911743704,6.92756753,1249.1,1249.0,53.06862029]
[1672911744854,4.53291778,1249.1,1249.0,29.04942029]
[1672911745079,21.05940091,1249.1,1249.0,29.04942029]
[1672911745296,5.11388091,1249.1,1249.0,29.04942029]
[1672911745439,1.54027417,1249.1,1249.0,29.04942029]
[1672911745649,1.47427417,1249.1,1249.0,37.05582029]
[1672911748707,4.4668184,1249.1,1249.0,37.05582029]
[1672911749146,1.47427417,1249.1,1249.0,29.04942029]
[1672911749490,4.466837,1249.1,1249.0,29.04942029]
[1672911749809,1.47427417,1249.1,1249.0,29.04942029]
[1672911751162,5.04788091,1249.1,1249.0,29.04942029]
[1672911751321,5.04788091,1249.1,1249.0,26.04942029]
[1672911751322,13.11964091,1249.1,1249.0,26.04942029]
[1672911751531,13.73562357,1249.1,1249.0,26.04942029]
[1672911751792,5.72986357,1249.1,1249.0,14.066]
[1672911752204,9.22986357,1249.1,1249.0,14.066]
[1672911752447,5.72986357,1249.1,1249.0,14.066]
[1672911754418,5.72986357,1249.1,1249.0,22.0724]
[1672911754636,5.72986357,1249.1,1249.0,38.0852]
[1672911755033,5.72986357,1249.1,1249.0,30.0788]
[1672911755247,2.14107417,1249.1,1249.0,38.0852]
[1672911755453,2.07507417,1249.1,1249.0,38.0852]
[1672911756082,5.06487479,1249.1,1249.0,26.06154951]
[1672911756320,5.13087479,1249.1,1249.0,34.06794951]
[1672911756488,4.53007479,1249.1,1249.0,34.06794951]
[1672911756698,4.46407479,1249.1,1249.0,34.06794951]
[1672911758475,4.46407479,1249.1,1249.0,26.06154951]
[1672911758683,5.06306357,1249.1,1249.0,26.06154951]
[1672911758909,5.12906357,1249.1,1249.0,26.06154951]
[1672911759947,5.12906357,1249.1,1249.0,26.06128349]
[1672911760404,5.12906357,1249.1,1249.0,18.05488349]
[1672911762393,5.12526997,1249.1,1249.0,18.05488349]
[1672911763413,1.53648057,1249.1,1249.0,18.05488349]
[1672911763663,5.05926997,1249.1,1249.0,18.05488349]
[1672911763825,5.12526997,1249.1,1249.0,18.05488349]
[1672911765820,5.12526997,1249.1,1249.0,14.06573398]
[1672911766035,13.13102997,1249.1,1249.0,14.06573398]
[1672911766567,5.12526997,1249.1,1249.0,14.06573398]
[1672911785314,8.62526997,1249.1,1249.0,0.002]
[1672911785514,5.12526997,1249.1,1248.9,16.0729]
[1672911785845,2.99011183,1249.0,1248.9,20.06204951]
[1672911786210,4.33821291,1249.0,1248.9,20.06204951]
[1672911787662,1.34810108,1249.0,1248.9,20.06204951]
[1672911787939,1.34810108,1249.0,1248.9,12.05514951]
[1672911789615,4.93689048,1249.0,1248.9,12.05514951]
[1672911794837,4.33892933,1249.0,1248.9,50.07626951]
[1672911795099,4.33892933,1249.0,1248.9,49.66318071]
[1672911795483,6.73163209,1249.0,1248.9,49.66318071]
[1672911795691,6.7975757,1249.0,1248.9,49.66318071]
[1672911796956,3.80674745,1249.0,1248.9,49.66318071]
[1672911797306,3.74074745,1249.0,1248.9,49.66318071]
[1672911799568,5.5350387,1249.0,1248.9,49.66318071]
[1672911799888,5.6010387,1249.0,1248.9,49.66318071]
[1672911800299,3.80674745,1249.0,1248.9,49.66318071]
[1672911800511,3.74074745,1249.0,1248.9,49.66318071]
[1672911801620,5.53486711,1249.0,1248.9,49.66318071]
[1672911801787,5.60086711,1249.0,1248.9,49.66318071]
[1672911802207,3.80674745,1249.0,1248.9,49.66318071]
[1672911802418,3.74074745,1249.0,1248.9,49.66318071]
[1672911803069,5.53485655,1249.0,1248.9,49.66318071]
[1672911803305,4.40431384,1249.0,1248.9,53.16318071]
[1672911803491,4.33831384,1249.0,1248.9,49.66318071]
[1672911803700,2.54420474,1249.0,1248.9,49.66318071]
[1672911804099,4.33831384,1249.0,1248.9,33.64910071]
[1672911804314,4.33831384,1249.0,1248.9,26.54074876]
[1672911804747,5.53485655,1249.0,1248.9,26.54074876]
[1672911804966,5.60085655,1249.0,1248.9,18.53370876]
[1672911805184,5.60085655,1249.0,1248.9,26.54074876]
[1672911805821,5.60085655,1249.0,1248.9,34.54778876]
[1672911806242,5.60085655,1249.0,1248.9,26.54074876]
[1672911806436,5.60085655,1249.0,1248.9,18.53370876]
[1672911806644,3.80674745,1249.0,1248.9,18.53370876]
[1672911806853,3.74074745,1249.0,1248.9,18.53370876]
[1672911807062,3.74074745,1249.0,1248.9,26.54074876]
[1672911808246,6.7315757,1249.0,1248.9,18.53370876]
[1672911808554,6.7975757,1249.0,1248.9,18.53370876]
[1672911809701,6.7975757,1249.0,1248.9,18.53325841]
[1672911810528,20.41772933,1249.0,1248.9,18.53325841]
[1672911810769,20.41772933,1249.0,1248.9,18.05469916]
[1672911810770,20.41551704,1249.0,1248.9,18.05469916]
[1672911811441,4.40271704,1249.0,1248.9,18.05469916]
[1672911811648,4.33671704,1249.0,1248.9,18.05469916]
[1672911811920,4.33671704,1249.0,1248.9,34.06877916]
[1672911812234,6.72760706,1249.0,1248.9,34.06877916]
[1672911812452,6.79360706,1249.0,1248.9,42.07581916]
[1672911812598,3.8049911,1249.0,1248.9,42.07581916]
[1672911812974,3.7389911,1249.0,1248.9,42.07581916]
[1672911813544,6.72760706,1249.0,1248.9,42.07581916]
[1672911813751,6.79360706,1249.0,1248.9,34.06877916]
[1672911814206,6.79360706,1249.0,1248.9,42.07581916]
[1672911814803,3.8049911,1249.0,1248.9,42.07581916]
[1672911815013,6.72760706,1249.0,1248.9,34.06877916]
[1672911815273,6.79360706,1249.0,1248.9,34.06877916]
[1672911818747,3.8049911,1249.0,1248.9,42.07581916]
[1672911819072,3.7389911,1249.0,1248.9,42.07581916]
[1672911820369,3.7389911,1249.0,1248.9,34.06877916]
[1672911820864,3.7389911,1249.0,1248.9,42.07581916]
[1672911821011,5.53253632,1249.0,1248.9,42.07581916]
[1672911821226,5.59854426,1249.0,1248.9,42.07581916]
[1672911821553,5.59854426,1249.0,1248.9,46.15263028]
[1672911823067,3.8049911,1249.0,1248.9,46.15263028]
[1672911823386,5.53279583,1249.0,1248.9,46.63118953]
[1672911823694,5.59879583,1249.0,1248.9,46.63118953]
[1672911823918,5.59879583,1249.0,1248.9,38.62414953]
[1672911825120,5.59879583,1249.0,1248.9,46.63118953]
[1672911825721,5.59879583,1249.0,1248.9,38.62414953]
[1672911828401,6.79360706,1249.0,1248.9,18.53325841]
[1672911828827,14.80000706,1249.0,1248.9,18.53325841]
[1672911829134,12.40911704,1249.0,1248.9,18.53325841]
[1672911829320,28.42191704,1249.0,1248.9,18.53325841]
[1672911829531,4.40271704,1249.0,1248.9,18.53325841]
[1672911829763,4.33671704,1249.0,1248.9,18.53325841]
[1672911833336,4.33671704,1249.0,1248.9,18.52964534]
[1672911833542,4.33393046,1249.0,1248.9,18.52964534]
[1672911844124,1.3453145,1249.0,1248.9,18.52964534]
[1672911844340,4.33558875,1249.0,1248.9,18.52964534]
[1672911845667,1.3453145,1249.0,1248.9,18.52964534]
[1672911846388,4.33575249,1249.0,1248.9,18.52964534]
[1672911846601,4.33579318,1249.0,1248.9,18.52964534]
[1672911846862,1.3453145,1249.0,1248.9,18.52964534]
[1672911847180,4.33589377,1249.0,1248.9,18.52964534]
[1672911855082,4.33589377,1249.0,1248.9,18.52587546]
[1672911856475,17.3581145,1249.0,1248.9,0.0581667]
[1672911856685,17.3581145,1249.0,1248.7,52.29]
[1672911856686,29.599104,1249.0,1248.7,30.3481667]
[1672911856896,29.599104,1249.0,1248.7,18.04731621]
[1672911856897,2.9904067,1248.8,1248.7,18.04731621]
[1672911857146,27.0134467,1248.8,1248.7,18.04731621]
[1672911857310,27.67752804,1248.8,1248.7,18.04731621]
[1672911857523,19.66984804,1248.8,1248.7,18.04731621]
[1672911858737,19.06894899,1248.8,1248.7,18.04731621]
[1672911859461,27.07662899,1248.8,1248.7,18.04731621]
[1672911860522,19.06894899,1248.8,1248.7,18.04731621]
[1672911860683,11.06126899,1248.8,1248.7,18.04731621]
[1672911861326,27.07662899,1248.8,1248.7,18.04731621]
[1672911861548,19.06894899,1248.8,1248.7,18.04731621]
[1672911861730,3.05358899,1248.8,1248.7,18.04731621]
[1672911862103,2.98758899,1248.8,1248.7,18.04731621]
[1672911862416,5.37626259,1248.8,1248.7,18.04731621]
[1672911862634,3.05358899,1248.8,1248.7,18.04731621]
[1672911862792,2.98758899,1248.8,1248.7,18.04731621]
[1672911863200,5.37626268,1248.8,1248.7,18.04731621]
[1672911863411,5.44226268,1248.8,1248.7,18.04731621]
[1672911864062,3.05358899,1248.8,1248.7,18.04531621]
[1672911864284,6.63891191,1248.8,1248.7,18.04731621]
[1672911864485,6.70491191,1248.8,1248.7,18.04731621]
[1672911868216,7.3002064,1248.8,1248.7,37.14724708]
[1672911868987,8.4963553,1248.8,1248.7,18.52587546]
[1672911869416,5.50876631,1248.8,1248.7,18.52587546]
[1672911872472,24.5117153,1248.8,1248.7,18.52587546]
[1672911872968,8.4963553,1248.8,1248.7,18.52587546]
[1672911873172,8.4963553,1248.8,1248.7,14.0581667]
[1672911873363,6.10763716,1248.8,1248.7,14.0581667]
[1672911873777,8.49587195,1248.8,1248.7,14.0581667]
[1672911873988,6.10763716,1248.8,1248.7,14.0581667]
[1672911874515,8.49574703,1248.8,1248.7,14.0581667]
[1672911874723,6.10763716,1248.8,1248.7,14.0581667]
[1672911876420,8.49577629,1248.8,1248.7,14.0581667]
[1672911876755,6.10763716,1248.8,1248.7,14.0581667]
[1672911876930,8.49576786,1248.8,1248.7,14.0581667]
[1672911877351,8.49576786,1248.8,1248.7,14.0561667]
[1672911877614,8.49576786,1248.8,1248.7,14.0581667]
[1672911878345,6.10763716,1248.8,1248.7,14.0581667]
[1672911879676,8.49566812,1248.8,1248.7,14.0581667]
[1672911879890,6.10763716,1248.8,1248.7,14.05546973]
[1672911881131,8.49573719,1248.8,1248.7,14.05546973]
[1672911881520,6.10763716,1248.8,1248.7,14.05546973]
[1672911883491,8.49574899,1248.8,1248.7,14.05546973]
[1672911886576,6.10763716,1248.8,1248.7,14.05546973]
[1672911892295,3.12004817,1248.8,1248.7,14.05546973]
[1672911892516,3.05404817,1248.8,1248.7,14.05546973]
[1672911893537,11.06172817,1248.8,1248.7,14.05546973]
[1672911893751,11.12772817,1248.8,1248.7,14.05546973]
[1672911894006,14.71621621,1248.8,1248.7,14.05546973]
[1672911894222,30.73157621,1248.8,1248.7,14.05546973]
[1672911894599,27.14308817,1248.8,1248.7,14.05546973]
[1672911894809,30.72947112,1248.8,1248.7,0.05546973]
[1672911895015,31.31167767,1248.8,1248.6,8.05546973]
[1672911895283,31.31167767,1248.8,1248.6,12.04461924]
[1672911895284,3.58631263,1248.7,1248.6,12.04461924]
[1672911895450,11.59463263,1248.7,1248.6,12.04461924]
[1672911895662,11.66063263,1248.7,1248.6,12.04461924]
[1672911897386,3.65231263,1248.7,1248.6,12.04461924]
[1672911897541,6.7063608,1248.8,1248.6,12.04461924]
[1672911897755,2.989384,1248.7,1248.6,12.04461924]
[1672911900073,2.989384,1248.7,1248.6,4.04461924]
[1672911900268,2.989384,1248.7,1248.6,11.98914951]
[1672911900478,2.989384,1248.7,1248.6,12.04461924]
[1672911902790,2.989384,1248.7,1248.6,12.04075747]
[1672911903470,10.997704,1248.7,1248.6,8.05546973]
[1672911903687,11.063704,1248.7,1248.6,8.05546973]
[1672911903913,3.055384,1248.7,1248.6,8.05546973]
[1672911904070,2.989384,1248.7,1248.6,8.05546973]
[1672911906158,2.989384,1248.7,1248.6,12.04461924]
[1672911906416,5.3817116,1248.7,1248.6,12.04461924]
[1672911906634,3.055384,1248.7,1248.6,12.04461924]
[1672911906859,2.989384,1248.7,1248.6,12.04461924]
[1672911907607,3.58631263,1248.7,1248.6,4.04461924]
[1672911907898,19.60295263,1248.7,1248.6,3.98914951]
[1672911908113,27.67727263,1248.7,1248.6,3.98914951]
[1672911908890,19.66895263,1248.7,1248.6,3.98914951]
[1672911909585,19.66895263,1248.7,1248.5,30.40002718]
[1672911909798,2.99067527,1248.6,1248.5,34.38917669]
[1672911910040,2.99067527,1248.6,1248.5,26.18737669]
[1672911910229,2.99067527,1248.6,1248.5,26.18537669]
[1672911910230,2.99267527,1248.6,1248.5,26.18537669]
[1672911910417,2.99067527,1248.6,1248.5,26.18737669]
[1672911912671,10.99964527,1248.6,1248.5,26.18737669]
[1672911912828,11.06564527,1248.6,1248.5,26.18737669]
[1672911913371,19.07461527,1248.6,1248.5,26.18737669]
[1672911914067,19.07461527,1248.6,1248.5,22.19822718]
[1672911914068,2.175,1248.6,1248.5,22.19822718]
[1672911914277,2.109,1248.6,1248.5,22.19822718]
[1672911914908,5.69531263,1248.6,1248.5,22.19822718]
[1672911915132,2.175,1248.6,1248.5,22.19822718]
[1672911915349,2.109,1248.6,1248.5,22.19822718]
[1672911915593,3.65231263,1248.7,1248.5,22.19822718]
[1672911915746,2.98910442,1248.6,1248.5,22.19822718]
[1672911915959,7.15231263,1248.7,1248.5,22.19822718]
[1672911916381,7.15231263,1248.7,1248.5,30.20783718]
[1672911916593,7.15231263,1248.7,1248.5,34.19698669]
[1672911916834,23.16905263,1248.7,1248.5,26.18737669]
[1672911917044,2.98896889,1248.6,1248.5,26.18737669]
[1672911917255,2.98892145,1248.6,1248.5,26.18737669]
[1672911917475,2.98883745,1248.6,1248.5,26.18737669]
[1672911919803,2.98883745,1248.6,1248.5,22.19822718]
[1672911919967,31.17812263,1248.7,1248.5,22.19822718]
[1672911920389,34.6740828,1248.7,1248.5,22.19822718]
[1672911920620,34.6740828,1248.7,1248.5,0.19822718]
[1672911920621,11.59528263,1248.6,1248.5,0.19822718]
[1672911920810,28.28032263,1248.6,1248.5,0.14275745]
[1672911922932,27.67922263,1248.6,1248.5,0.14275745]
[1672911924169,11.66128263,1248.6,1248.5,0.14275745]
[1672911924820,3.65231263,1248.6,1248.5,0.14275745]
[1672911925009,3.58631263,1248.6,1248.5,0.14275745]
[1672911925835,31.43268263,1248.7,1248.5,0.14275745]
[1672911926255,3.5,1248.6,1248.5,0.14275745]
[1672911926840,31.43268263,1248.7,1248.5,0.14275745]
[1672911927263,3.5,1248.6,1248.5,0.14033703]
[1672911927474,2.98740073,1248.6,1248.5,0.14033703]
[1672911927643,31.43252263,1248.7,1248.5,0.14033703]
[1672911927855,16.01794,1248.6,1248.5,0.14033703]
[1672911928095,16.08394,1248.6,1248.5,0.14033703]
[1672911928307,11.66128263,1248.6,1248.5,0.14033703]
[1672911930707,19.67025263,1248.6,1248.5,0.14033703]
[1672911930941,27.67922263,1248.6,1248.5,0.14033703]
[1672911931951,19.67025263,1248.6,1248.5,0.14033703]
[1672911933562,3.65231263,1248.6,1248.5,0.14033703]
[1672911933772,3.58631263,1248.6,1248.5,0.14033703]
[1672911935857,23.42384263,1248.7,1248.5,0.14033703]
[1672911936475,2.98847388,1248.6,1248.5,8.14992703]
[1672911936705,2.98847388,1248.6,1248.5,8.20539676]
[1672911936917,2.98847388,1248.6,1248.5,0.19580676]
[1672911937106,2.98847388,1248.6,1248.5,0.14033703]
[1672911937336,15.41551263,1248.7,1248.5,0.14033703]
[1672911937743,23.42388263,1248.7,1248.5,0.14033703]
[1672911938200,3.58631263,1248.6,1248.5,0.14033703]
[1672911938937,11.59528263,1248.6,1248.5,0.14033703]
[1672911939154,11.66128263,1248.6,1248.5,0.14033703]
[1672911939942,3.65231263,1248.6,1248.5,0.14033703]
[1672911940153,3.58631263,1248.6,1248.5,0.14033703]
[1672911940412,3.58631263,1248.6,1248.5,2.24933703]
[1672911940569,3.58631263,1248.6,1248.5,0.14033703]
[1672911941354,7.08631263,1248.6,1248.5,0.14033703]
[1672911941644,31.17922263,1248.6,1248.5,0.14033703]
[1672911943973,23.17025263,1248.6,1248.5,0.14033703]
[1672911944439,31.17922263,1248.6,1248.5,0.14033703]
[1672911944807,19.67025263,1248.6,1248.5,0.14033703]
[1672911945481,27.67922263,1248.6,1248.5,0.14033703]
[1672911945758,24.09291,1248.6,1248.5,0.14033703]
[1672911946404,16.08394,1248.6,1248.5,0.14033703]
[1672911948412,3.65564747,1248.6,1248.5,0.13695545]
[1672911948637,3.58964747,1248.6,1248.5,0.13695545]
[1672911951805,40.0235595,1248.7,1248.5,0.13695545]
[1672911952635,7.6685895,1248.6,1248.5,0.13695545]
[1672911952792,7.7345895,1248.6,1248.5,0.13695545]